[Event "Titled Tuesday Blitz November 15 Early 2022"]
[White "Sharifov, Mekhriddin"]
[Black "Tristan, Leonardo"]
[WhiteFideId "14701545"]
[BlackFideId "113816"]
[WhiteElo "2109"]
[BlackElo "2461"]
[Result "1-0"]
[Round "11"]
[TimeControl "180+1"]
[Date "2022.11.15"]
[WhiteClock "0:00:13"]
[BlackClock "0:00:32"]

1. e4 {[%clk 0:03:00]}  d5 {[%clk 0:03:00]} 2. exd5 {[%clk 0:03:01]}  Qxd5 {[%clk 0:03:01]} 3. Nc3 {[%clk 0:03:02]}  Qa5 {[%clk 0:03:01]} 4. d4 {[%clk 0:03:02]}  Nf6 {[%clk 0:03:01]} 5. Nf3 {[%clk 0:03:02]}  Bf5 {[%clk 0:03:02]} 6. Bc4 {[%clk 0:03:01]}  e6 {[%clk 0:03:02]} 7. Bd2 {[%clk 0:03:01]}  Bb4 {[%clk 0:03:02]} 8. a3 {[%clk 0:02:57]}  Bxc3 {[%clk 0:03:02]} 9. Bxc3 {[%clk 0:02:58]}  Qb6 {[%clk 0:03:03]} 10. O-O {[%clk 0:02:57]}  O-O {[%clk 0:03:01]} 11. h3 {[%clk 0:02:53]}  Nc6 {[%clk 0:03:01]} 12. Qe2 {[%clk 0:02:45]}  Rad8 {[%clk 0:03:00]} 13. Rad1 {[%clk 0:02:46]}  Rfe8 {[%clk 0:03:00]} 14. Nh4 {[%clk 0:02:45]}  Be4 {[%clk 0:03:00]} 15. Rfe1 {[%clk 0:02:30]}  Nxd4 {[%clk 0:02:55]} 16. Bxd4 {[%clk 0:02:17]}  Rxd4 {[%clk 0:02:56]} 17. c3 {[%clk 0:02:07]}  Rxd1 {[%clk 0:02:53]} 18. Rxd1 {[%clk 0:02:08]}  h6 {[%clk 0:02:48]} 19. b4 {[%clk 0:02:00]}  a6 {[%clk 0:02:45]} 20. a4 {[%clk 0:01:57]}  c6 {[%clk 0:02:19]} 21. Nf3 {[%clk 0:01:48]}  Rd8 {[%clk 0:02:04]} 22. a5 {[%clk 0:01:43]}  Qc7 {[%clk 0:02:04]} 23. Nd4 {[%clk 0:01:34]}  Bg6 {[%clk 0:01:55]} 24. Nb3 {[%clk 0:01:30]}  Ne4 {[%clk 0:01:47]} 25. Rc1 {[%clk 0:00:46]}  Qf4 {[%clk 0:01:46]} 26. Qe3 {[%clk 0:00:41]}  Qxe3 {[%clk 0:01:43]} 27. fxe3 {[%clk 0:00:42]}  Kf8 {[%clk 0:01:34]} 28. Nd4 {[%clk 0:00:35]}  Ke7 {[%clk 0:01:33]} 29. Bxa6 {[%clk 0:00:29]}  Rxd4 {[%clk 0:01:27]} 30. cxd4 {[%clk 0:00:28]}  bxa6 {[%clk 0:01:26]} 31. Rxc6 {[%clk 0:00:28]}  Kd7 {[%clk 0:01:19]} 32. Rxa6 {[%clk 0:00:28]}  Kc7 {[%clk 0:01:19]} 33. Ra7+ {[%clk 0:00:22]}  Kc6 {[%clk 0:01:14]} 34. Ra8 {[%clk 0:00:19]}  Nd6 {[%clk 0:01:10]} 35. Kf2 {[%clk 0:00:14]}  Be4 {[%clk 0:01:09]} 36. g3 {[%clk 0:00:12]}  Bd5 {[%clk 0:01:09]} 37. Ke2 {[%clk 0:00:12]}  Kb5 {[%clk 0:01:05]} 38. Rb8+ {[%clk 0:00:12]}  Kc4 {[%clk 0:00:50]} 39. a6 {[%clk 0:00:11]}  Nf5 {[%clk 0:00:50]} 40. a7 {[%clk 0:00:10]}  Nxg3+ {[%clk 0:00:51]} 41. Ke1 {[%clk 0:00:08]}  Kd3 {[%clk 0:00:50]} 42. Rd8 {[%clk 0:00:06]}  Be4 {[%clk 0:00:46]} 43. b5 {[%clk 0:00:06]}  Kxe3 {[%clk 0:00:45]} 44. d5 {[%clk 0:00:07]}  Nf5 {[%clk 0:00:41]} 45. a8=Q {[%clk 0:00:06]}  Nd4 {[%clk 0:00:41]} 46. Qa3+ {[%clk 0:00:05]}  Bd3 {[%clk 0:00:42]} 47. Kd1 {[%clk 0:00:04]}  e5 {[%clk 0:00:40]} 48. Qc1+ {[%clk 0:00:04]}  Ke4 {[%clk 0:00:39]} 49. Re8 {[%clk 0:00:04]}  f6 {[%clk 0:00:36]} 50. d6 {[%clk 0:00:03]}  Be2+ {[%clk 0:00:37]} 51. Ke1 {[%clk 0:00:03]}  Bxb5 {[%clk 0:00:38]} 52. Rb8 {[%clk 0:00:02]}  Bc6 {[%clk 0:00:35]} 53. Rb4 {[%clk 0:00:03]}  Kd5 {[%clk 0:00:34]} 54. Rxd4+ {[%clk 0:00:04]}  exd4 {[%clk 0:00:35]} 55. Qf4 {[%clk 0:00:03]}  Bd7 {[%clk 0:00:33]} 56. Qg3 {[%clk 0:00:03]}  g5 {[%clk 0:00:34]} 57. Qf2 {[%clk 0:00:03]}  f5 {[%clk 0:00:33]} 58. Qd2 {[%clk 0:00:03]}  f4 {[%clk 0:00:33]} 59. Kf2 {[%clk 0:00:03]}  Bxh3 {[%clk 0:00:33]} 60. Qa2+ {[%clk 0:00:04]}  Kxd6 {[%clk 0:00:33]} 61. Qa6+ {[%clk 0:00:05]}  Ke5 {[%clk 0:00:32]} 62. Qxh6 {[%clk 0:00:06]}  g4 {[%clk 0:00:31]} 63. Qg5+ {[%clk 0:00:06]}  Ke4 {[%clk 0:00:32]} 64. Qg6+ {[%clk 0:00:07]}  Ke5 {[%clk 0:00:32]} 65. Qg7+ {[%clk 0:00:07]}  Ke4 {[%clk 0:00:33]} 66. Qe7+ {[%clk 0:00:07]}  Kf5 {[%clk 0:00:33]} 67. Qd7+ {[%clk 0:00:08]}  Ke4 {[%clk 0:00:34]} 68. Qe6+ {[%clk 0:00:08]}  Kd3 {[%clk 0:00:34]} 69. Qf5+ {[%clk 0:00:09]}  Kc3 {[%clk 0:00:32]} 70. Qxf4 {[%clk 0:00:09]}  d3 {[%clk 0:00:33]} 71. Ke1 {[%clk 0:00:09]}  Bg2 {[%clk 0:00:30]} 72. Qd2+ {[%clk 0:00:10]}  Kc4 {[%clk 0:00:30]} 73. Qxg2 {[%clk 0:00:11]}  Kc3 {[%clk 0:00:30]} 74. Qxg4 {[%clk 0:00:10]}  Kc2 {[%clk 0:00:30]} 75. Qg2+ {[%clk 0:00:09]}  Kc1 {[%clk 0:00:30]} 76. Qd2+ {[%clk 0:00:10]}  Kb1 {[%clk 0:00:31]} 77. Kf2 {[%clk 0:00:10]}  Ka1 {[%clk 0:00:31]} 78. Ke3 {[%clk 0:00:11]}  Kb1 {[%clk 0:00:31]} 79. Kd4 {[%clk 0:00:12]}  Ka1 {[%clk 0:00:32]} 80. Kc3 {[%clk 0:00:13]} 1-0


[Site "https://www.chess.com"]

[Event "Titled Tuesday Blitz November 15 Early 2022"]
[White "Shimanov, Aleksandr"]
[Black "Pajeken, Jakob Leon"]
[WhiteFideId "4198603"]
[BlackFideId "12942839"]
[WhiteElo "2605"]
[BlackElo "2429"]
[Result "1/2-1/2"]
[Round "11"]
[TimeControl "180+1"]
[Date "2022.11.15"]
[WhiteClock "0:00:04"]
[BlackClock "0:00:05"]

1. e4 {[%clk 0:03:00]}  e5 {[%clk 0:03:00]} 2. Nf3 {[%clk 0:03:00]}  Nc6 {[%clk 0:03:00]} 3. Nc3 {[%clk 0:03:00]}  Nf6 {[%clk 0:03:00]} 4. h3 {[%clk 0:03:01]}  g6 {[%clk 0:02:57]} 5. Bc4 {[%clk 0:03:00]}  Bg7 {[%clk 0:02:56]} 6. d3 {[%clk 0:02:58]}  O-O {[%clk 0:02:54]} 7. Bg5 {[%clk 0:02:57]}  h6 {[%clk 0:02:53]} 8. Be3 {[%clk 0:02:57]}  d6 {[%clk 0:02:40]} 9. Qd2 {[%clk 0:02:56]}  Kh7 {[%clk 0:02:40]} 10. O-O {[%clk 0:02:53]}  Be6 {[%clk 0:02:39]} 11. Bxe6 {[%clk 0:02:52]}  fxe6 {[%clk 0:02:40]} 12. d4 {[%clk 0:02:53]}  exd4 {[%clk 0:02:37]} 13. Nxd4 {[%clk 0:02:54]}  Nxd4 {[%clk 0:02:35]} 14. Bxd4 {[%clk 0:02:55]}  Qe7 {[%clk 0:02:33]} 15. Rad1 {[%clk 0:02:52]}  Nd7 {[%clk 0:02:31]} 16. a4 {[%clk 0:02:37]}  a6 {[%clk 0:02:23]} 17. Kh1 {[%clk 0:02:32]}  Qg5 {[%clk 0:02:05]} 18. Qxg5 {[%clk 0:02:20]}  hxg5 {[%clk 0:02:05]} 19. f3 {[%clk 0:02:18]}  Bxd4 {[%clk 0:02:00]} 20. Rxd4 {[%clk 0:02:17]}  Ne5 {[%clk 0:01:55]} 21. Kg1 {[%clk 0:02:15]}  Rf7 {[%clk 0:01:53]} 22. Rfd1 {[%clk 0:02:13]}  Raf8 {[%clk 0:01:51]} 23. Ne2 {[%clk 0:01:57]}  Kh6 {[%clk 0:01:48]} 24. Ng3 {[%clk 0:01:55]}  a5 {[%clk 0:01:44]} 25. Nf1 {[%clk 0:01:49]}  Kh5 {[%clk 0:01:40]} 26. Ne3 {[%clk 0:01:47]}  Kh4 {[%clk 0:01:30]} 27. Kf2 {[%clk 0:01:30]}  b6 {[%clk 0:00:58]} 28. c3 {[%clk 0:01:25]}  Rf6 {[%clk 0:00:53]} 29. Ng4 {[%clk 0:01:06]}  Nxf3 {[%clk 0:00:53]} 30. gxf3 {[%clk 0:01:02]}  Rxf3+ {[%clk 0:00:53]} 31. Ke2 {[%clk 0:01:03]}  Rxh3 {[%clk 0:00:50]} 32. e5 {[%clk 0:00:55]}  c5 {[%clk 0:00:39]} 33. Nf2+ {[%clk 0:00:29]}  cxd4 {[%clk 0:00:38]} 34. Rxd4+ {[%clk 0:00:30]}  g4 {[%clk 0:00:19]} 35. Rxg4+ {[%clk 0:00:15]}  Kh5 {[%clk 0:00:19]} 36. Rg2 {[%clk 0:00:16]}  Rhf3 {[%clk 0:00:19]} 37. exd6 {[%clk 0:00:15]}  R3f5 {[%clk 0:00:18]} 38. Ne4 {[%clk 0:00:14]}  Re5 {[%clk 0:00:18]} 39. Ke3 {[%clk 0:00:13]}  Rf1 {[%clk 0:00:16]} 40. d7 {[%clk 0:00:05]}  Rd1 {[%clk 0:00:16]} 41. Kf3 {[%clk 0:00:01]}  Rf5+ {[%clk 0:00:14]} 42. Ke2 {[%clk 0:00:02]}  Rxd7 {[%clk 0:00:13]} 43. Ng3+ {[%clk 0:00:01]}  Kg5 {[%clk 0:00:14]} 44. Ne4+ {[%clk 0:00:02]}  Kf4 {[%clk 0:00:13]} 45. Nf2 {[%clk 0:00:02]}  Ke5 {[%clk 0:00:11]} 46. Rxg6 {[%clk 0:00:02]}  Rh7 {[%clk 0:00:11]} 47. Nd3+ {[%clk 0:00:02]}  Kd5 {[%clk 0:00:11]} 48. Rg2 {[%clk 0:00:03]}  Rh3 {[%clk 0:00:11]} 49. Kd2 {[%clk 0:00:02]}  Rff3 {[%clk 0:00:10]} 50. Nc1 {[%clk 0:00:02]}  Rhg3 {[%clk 0:00:10]} 51. Re2 {[%clk 0:00:03]}  Rg1 {[%clk 0:00:10]} 52. Kc2 {[%clk 0:00:03]}  e5 {[%clk 0:00:08]} 53. Nb3 {[%clk 0:00:03]}  e4 {[%clk 0:00:08]} 54. Nd2 {[%clk 0:00:03]}  Rf4 {[%clk 0:00:07]} 55. Rh2 {[%clk 0:00:03]}  Rgg4 {[%clk 0:00:07]} 56. Rh5+ {[%clk 0:00:03]}  Kc6 {[%clk 0:00:07]} 57. Nc4 {[%clk 0:00:03]}  Rf2+ {[%clk 0:00:06]} 58. Kb3 {[%clk 0:00:03]}  Rgg2 {[%clk 0:00:04]} 59. Re5 {[%clk 0:00:03]}  Re2 {[%clk 0:00:04]} 60. Re6+ {[%clk 0:00:03]}  Kd5 {[%clk 0:00:04]} 61. Re5+ {[%clk 0:00:03]}  Kc6 {[%clk 0:00:04]} 62. Re6+ {[%clk 0:00:03]}  Kd5 {[%clk 0:00:05]} 63. Re5+ {[%clk 0:00:04]}  Kc6 {[%clk 0:00:05]} 1/2-1/2


[Site "https://www.chess.com"]

[Event "Titled Tuesday Blitz November 15 Early 2022"]
[White "Sreyas Payyappat"]
[Black "Oro, Faustino"]
[WhiteFideId "46674969"]
[BlackFideId "20000197"]
[WhiteElo "2083"]
[BlackElo "2066"]
[Result "1-0"]
[Round "11"]
[TimeControl "180+1"]
[Date "2022.11.16"]
[WhiteClock "0:00:07"]
[BlackClock "0:00:01"]

1. e4 {[%clk 0:02:57]}  c5 {[%clk 0:02:56]} 2. Nf3 {[%clk 0:02:56]}  d6 {[%clk 0:02:56]} 3. d4 {[%clk 0:02:57]}  cxd4 {[%clk 0:02:57]} 4. Nxd4 {[%clk 0:02:58]}  Nf6 {[%clk 0:02:57]} 5. Nc3 {[%clk 0:02:57]}  a6 {[%clk 0:02:58]} 6. f4 {[%clk 0:02:54]}  e5 {[%clk 0:02:52]} 7. Nf3 {[%clk 0:02:53]}  exf4 {[%clk 0:02:49]} 8. Bxf4 {[%clk 0:02:52]}  Nc6 {[%clk 0:02:48]} 9. Qd2 {[%clk 0:02:50]}  b5 {[%clk 0:02:39]} 10. O-O-O {[%clk 0:02:49]}  Bb7 {[%clk 0:02:28]} 11. a3 {[%clk 0:02:36]}  Qa5 {[%clk 0:02:08]} 12. e5 {[%clk 0:02:20]}  dxe5 {[%clk 0:01:54]} 13. Nxe5 {[%clk 0:02:21]}  Be7 {[%clk 0:01:29]} 14. Nd7 {[%clk 0:01:39]}  O-O-O {[%clk 0:01:15]} 15. Nd5 {[%clk 0:00:20]}  Qxd2+ {[%clk 0:00:55]} 16. Rxd2 {[%clk 0:00:19]}  Nxd5 {[%clk 0:00:52]} 17. Rxd5 {[%clk 0:00:17]}  Rxd7 {[%clk 0:00:51]} 18. Rxd7 {[%clk 0:00:17]}  Kxd7 {[%clk 0:00:51]} 19. Be2 {[%clk 0:00:16]}  Rd8 {[%clk 0:00:49]} 20. Bf3 {[%clk 0:00:13]}  Kc8 {[%clk 0:00:44]} 21. Re1 {[%clk 0:00:13]}  Bf6 {[%clk 0:00:44]} 22. Bg4+ {[%clk 0:00:13]}  Rd7 {[%clk 0:00:29]} 23. Rd1 {[%clk 0:00:13]}  Nd4 {[%clk 0:00:20]} 24. Bxd7+ {[%clk 0:00:08]}  Kxd7 {[%clk 0:00:21]} 25. c3 {[%clk 0:00:09]}  Bxg2 {[%clk 0:00:20]} 26. cxd4 {[%clk 0:00:08]}  Bf3 {[%clk 0:00:20]} 27. Rf1 {[%clk 0:00:07]}  Be2 {[%clk 0:00:18]} 28. Rf2 {[%clk 0:00:07]}  Bc4 {[%clk 0:00:18]} 29. Be5 {[%clk 0:00:07]}  Bg5+ {[%clk 0:00:19]} 30. Kc2 {[%clk 0:00:07]}  f6 {[%clk 0:00:19]} 31. b3 {[%clk 0:00:07]}  Bd5 {[%clk 0:00:14]} 32. Bf4 {[%clk 0:00:06]}  Bh4 {[%clk 0:00:14]} 33. Bg3 {[%clk 0:00:07]}  Bg5 {[%clk 0:00:15]} 34. Bf4 {[%clk 0:00:07]}  Bh4 {[%clk 0:00:15]} 35. Rf1 {[%clk 0:00:08]}  Ke6 {[%clk 0:00:12]} 36. Kd3 {[%clk 0:00:08]}  Bxb3 {[%clk 0:00:11]} 37. Rc1 {[%clk 0:00:08]}  Bc4+ {[%clk 0:00:10]} 38. Ke4 {[%clk 0:00:08]}  f5+ {[%clk 0:00:10]} 39. Ke3 {[%clk 0:00:08]}  Bf6 {[%clk 0:00:10]} 40. Rg1 {[%clk 0:00:08]}  g6 {[%clk 0:00:07]} 41. Bg5 {[%clk 0:00:07]}  Bg7 {[%clk 0:00:06]} 42. Re1 {[%clk 0:00:08]}  Kd5 {[%clk 0:00:07]} 43. Rd1 {[%clk 0:00:08]}  Bb3 {[%clk 0:00:06]} 44. Rd2 {[%clk 0:00:07]}  h6 {[%clk 0:00:06]} 45. Bf4 {[%clk 0:00:07]}  g5 {[%clk 0:00:06]} 46. Be5 {[%clk 0:00:07]}  f4+ {[%clk 0:00:06]} 47. Kf3 {[%clk 0:00:07]}  Bf8 {[%clk 0:00:04]} 48. Kg4 {[%clk 0:00:07]}  Bxa3 {[%clk 0:00:01]} 49. Rd3 {[%clk 0:00:07]}  Kc4 {[%clk 0:00:01]} 50. Rh3 {[%clk 0:00:06]}  b4 {[%clk 0:00:02]} 51. Rxh6 {[%clk 0:00:06]}  Bd1+ {[%clk 0:00:02]} 52. Kxg5 {[%clk 0:00:06]}  b3 {[%clk 0:00:03]} 53. Rc6+ {[%clk 0:00:06]}  Kb5 {[%clk 0:00:03]} 54. Rc8 {[%clk 0:00:07]}  Bb4 {[%clk 0:00:03]} 55. Rb8+ {[%clk 0:00:07]}  Ka4 {[%clk 0:00:04]} 56. d5 {[%clk 0:00:07]}  b2 {[%clk 0:00:04]} 57. Bxb2 {[%clk 0:00:06]}  f3 {[%clk 0:00:05]} 58. Bd4 {[%clk 0:00:04]}  Be1 {[%clk 0:00:05]} 59. Kf6 {[%clk 0:00:05]}  f2 {[%clk 0:00:05]} 60. Bxf2 {[%clk 0:00:05]}  Bxf2 {[%clk 0:00:05]} 61. d6 {[%clk 0:00:05]}  Bg4 {[%clk 0:00:06]} 62. Rg8 {[%clk 0:00:05]}  Bh3 {[%clk 0:00:05]} 63. Rh8 {[%clk 0:00:04]}  Bg4 {[%clk 0:00:05]} 64. Ke7 {[%clk 0:00:05]}  Bc5 {[%clk 0:00:04]} 65. Rg8 {[%clk 0:00:04]}  Bh3 {[%clk 0:00:04]} 66. Rg5 {[%clk 0:00:05]}  Bb4 {[%clk 0:00:04]} 67. Rh5 {[%clk 0:00:05]}  Bg4 {[%clk 0:00:04]} 68. Rh4 {[%clk 0:00:05]}  Bf5 {[%clk 0:00:03]} 69. Kd8 {[%clk 0:00:05]}  Kb5 {[%clk 0:00:02]} 70. d7 {[%clk 0:00:06]}  Ba5+ {[%clk 0:00:03]} 71. Ke7 {[%clk 0:00:06]}  Bb4+ {[%clk 0:00:03]} 72. Rxb4+ {[%clk 0:00:05]}  Kxb4 {[%clk 0:00:04]} 73. d8=Q {[%clk 0:00:06]}  Kb5 {[%clk 0:00:01]} 74. h4 {[%clk 0:00:07]} 1-0


[Site "https://www.chess.com"]

[Event "Titled Tuesday Blitz November 15 Early 2022"]
[White "Stankovic, Ivan G"]
[Black "Janaszak, Dawid"]
[WhiteFideId "902837"]
[BlackFideId "1119206"]
[WhiteElo "2226"]
[BlackElo "2226"]
[Result "1/2-1/2"]
[Round "11"]
[TimeControl "180+1"]
[Date "2022.11.16"]
[WhiteClock "0:00:09"]
[BlackClock "0:00:12"]

1. e4 {[%clk 0:03:00]}  e5 {[%clk 0:03:00]} 2. d4 {[%clk 0:03:00]}  exd4 {[%clk 0:02:59]} 3. Qxd4 {[%clk 0:03:01]}  Nc6 {[%clk 0:02:59]} 4. Qe3 {[%clk 0:03:01]}  Nf6 {[%clk 0:02:52]} 5. Nc3 {[%clk 0:03:01]}  Bb4 {[%clk 0:02:49]} 6. Bd2 {[%clk 0:03:01]}  O-O {[%clk 0:02:49]} 7. O-O-O {[%clk 0:03:01]}  d6 {[%clk 0:02:44]} 8. Qg3 {[%clk 0:02:51]}  Re8 {[%clk 0:02:40]} 9. f3 {[%clk 0:02:51]}  Ne5 {[%clk 0:02:33]} 10. h4 {[%clk 0:02:51]}  c5 {[%clk 0:02:32]} 11. h5 {[%clk 0:02:49]}  Qa5 {[%clk 0:02:25]} 12. Nge2 {[%clk 0:02:42]}  Kh8 {[%clk 0:02:21]} 13. h6 {[%clk 0:02:39]}  g6 {[%clk 0:02:19]} 14. Bg5 {[%clk 0:02:38]}  Ng8 {[%clk 0:02:12]} 15. Kb1 {[%clk 0:02:28]}  Be6 {[%clk 0:02:10]} 16. Nd5 {[%clk 0:02:26]}  Bxd5 {[%clk 0:01:57]} 17. Rxd5 {[%clk 0:02:25]}  f6 {[%clk 0:01:57]} 18. Bc1 {[%clk 0:02:19]}  Qc7 {[%clk 0:01:50]} 19. Nf4 {[%clk 0:02:01]}  c4 {[%clk 0:01:45]} 20. Rd1 {[%clk 0:01:54]}  c3 {[%clk 0:01:25]} 21. Nd5 {[%clk 0:01:46]}  Qa5 {[%clk 0:01:25]} 22. b3 {[%clk 0:01:39]}  Ba3 {[%clk 0:01:20]} 23. Bxa3 {[%clk 0:01:39]}  Qxa3 {[%clk 0:01:20]} 24. Nxc3 {[%clk 0:01:39]}  Rac8 {[%clk 0:01:18]} 25. Nb5 {[%clk 0:01:27]}  Qc5 {[%clk 0:01:15]} 26. c4 {[%clk 0:01:24]}  a6 {[%clk 0:01:15]} 27. Rd5 {[%clk 0:01:15]}  axb5 {[%clk 0:00:51]} 28. Rxc5 {[%clk 0:01:15]}  Rxc5 {[%clk 0:00:52]} 29. f4 {[%clk 0:01:11]}  Nf7 {[%clk 0:00:51]} 30. cxb5 {[%clk 0:00:52]}  Rxe4 {[%clk 0:00:51]} 31. Bd3 {[%clk 0:00:52]}  Re7 {[%clk 0:00:46]} 32. Bxg6 {[%clk 0:00:46]}  Nfxh6 {[%clk 0:00:43]} 33. Bd3 {[%clk 0:00:40]}  Rg7 {[%clk 0:00:43]} 34. Qe3 {[%clk 0:00:36]}  Rc8 {[%clk 0:00:36]} 35. Qe6 {[%clk 0:00:33]}  Rcc7 {[%clk 0:00:32]} 36. Bc4 {[%clk 0:00:22]}  Rge7 {[%clk 0:00:28]} 37. Qxd6 {[%clk 0:00:20]}  Red7 {[%clk 0:00:29]} 38. Qa3 {[%clk 0:00:17]}  Rd2 {[%clk 0:00:23]} 39. Qf8 {[%clk 0:00:16]}  Rg7 {[%clk 0:00:16]} 40. Rxh6 {[%clk 0:00:13]}  Rgxg2 {[%clk 0:00:17]} 41. Rh1 {[%clk 0:00:12]}  Rb2+ {[%clk 0:00:16]} 42. Kc1 {[%clk 0:00:12]}  Rxa2 {[%clk 0:00:11]} 43. Kb1 {[%clk 0:00:08]}  Rab2+ {[%clk 0:00:11]} 44. Kc1 {[%clk 0:00:08]}  Ra2 {[%clk 0:00:12]} 45. Kb1 {[%clk 0:00:09]}  Rab2+ {[%clk 0:00:12]} 46. Kc1 {[%clk 0:00:09]}  Ra2 {[%clk 0:00:12]} 1/2-1/2


[Site "https://www.chess.com"]

[Event "Titled Tuesday Blitz November 15 Early 2022"]
[White "Storey, Charles H"]
[Black "Makridis, Dimitrios"]
[WhiteFideId "406686"]
[BlackFideId "25864475"]
[WhiteElo "2252"]
[BlackElo "2272"]
[Result "0-1"]
[Round "11"]
[TimeControl "180+1"]
[Date "2022.11.16"]
[WhiteClock "0:00:05"]
[BlackClock "0:01:25"]

1. c4 {[%clk 0:03:00]}  e6 {[%clk 0:02:48]} 2. g3 {[%clk 0:03:00]}  h5 {[%clk 0:02:46]} 3. Bg2 {[%clk 0:03:01]}  h4 {[%clk 0:02:45]} 4. Nc3 {[%clk 0:02:57]}  Nf6 {[%clk 0:02:44]} 5. e4 {[%clk 0:02:49]}  d6 {[%clk 0:02:26]} 6. gxh4 {[%clk 0:02:42]}  e5 {[%clk 0:02:23]} 7. d3 {[%clk 0:02:38]}  Rxh4 {[%clk 0:02:20]} 8. Nf3 {[%clk 0:02:37]}  Rh8 {[%clk 0:02:18]} 9. d4 {[%clk 0:02:25]}  exd4 {[%clk 0:02:16]} 10. Nxd4 {[%clk 0:02:24]}  g6 {[%clk 0:02:15]} 11. Bg5 {[%clk 0:02:13]}  Bg7 {[%clk 0:02:13]} 12. Qf3 {[%clk 0:02:04]}  Nbd7 {[%clk 0:02:07]} 13. Nd5 {[%clk 0:01:49]}  c6 {[%clk 0:02:04]} 14. Nxf6+ {[%clk 0:01:44]}  Nxf6 {[%clk 0:02:05]} 15. O-O-O {[%clk 0:01:33]}  Bg4 {[%clk 0:01:45]} 16. Bxf6 {[%clk 0:00:26]}  Bxf3 {[%clk 0:01:43]} 17. Bxd8 {[%clk 0:00:26]}  Bxd1 {[%clk 0:01:43]} 18. Rxd1 {[%clk 0:00:19]}  Rxd8 {[%clk 0:01:42]} 19. Nf3 {[%clk 0:00:18]}  Ke7 {[%clk 0:01:38]} 20. h3 {[%clk 0:00:17]}  Rh5 {[%clk 0:01:30]} 21. b3 {[%clk 0:00:16]}  b5 {[%clk 0:01:28]} 22. cxb5 {[%clk 0:00:11]}  Rxb5 {[%clk 0:01:29]} 23. Kd2 {[%clk 0:00:11]}  a5 {[%clk 0:01:29]} 24. Bf1 {[%clk 0:00:08]}  Rb4 {[%clk 0:01:27]} 25. Ke3 {[%clk 0:00:06]}  d5 {[%clk 0:01:24]} 26. exd5 {[%clk 0:00:06]}  Rxd5 {[%clk 0:01:25]} 27. Rc1 {[%clk 0:00:05]}  Bh6+ {[%clk 0:01:25]} 0-1


[Site "https://www.chess.com"]

[Event "Titled Tuesday Blitz November 15 Early 2022"]
[White "Svane, Frederik"]
[Black "Sarana, Alexey"]
[WhiteFideId "12923044"]
[BlackFideId "24133795"]
[WhiteElo "2466"]
[BlackElo "2708"]
[Result "0-1"]
[Round "11"]
[TimeControl "180+1"]
[Date "2022.11.15"]
[WhiteClock "0:00:06"]
[BlackClock "0:00:38"]

1. e4 {[%clk 0:03:00]}  c5 {[%clk 0:03:00]} 2. Nf3 {[%clk 0:03:01]}  d6 {[%clk 0:03:01]} 3. Bb5+ {[%clk 0:03:01]}  Bd7 {[%clk 0:03:02]} 4. c4 {[%clk 0:02:59]}  Nc6 {[%clk 0:03:01]} 5. Nc3 {[%clk 0:02:58]}  e5 {[%clk 0:03:01]} 6. d3 {[%clk 0:02:57]}  Nge7 {[%clk 0:03:00]} 7. h4 {[%clk 0:02:58]}  f5 {[%clk 0:02:58]} 8. h5 {[%clk 0:02:51]}  f4 {[%clk 0:02:54]} 9. a3 {[%clk 0:02:46]}  a6 {[%clk 0:02:51]} 10. Bxc6 {[%clk 0:02:47]}  Nxc6 {[%clk 0:02:50]} 11. Nd5 {[%clk 0:02:43]}  Be7 {[%clk 0:02:46]} 12. b4 {[%clk 0:02:41]}  O-O {[%clk 0:02:40]} 13. Bb2 {[%clk 0:02:40]}  b6 {[%clk 0:02:40]} 14. Bc3 {[%clk 0:02:32]}  Rf7 {[%clk 0:02:36]} 15. Qe2 {[%clk 0:02:27]}  Bf8 {[%clk 0:02:33]} 16. Rb1 {[%clk 0:02:26]}  Bg4 {[%clk 0:02:32]} 17. Qc2 {[%clk 0:02:17]}  h6 {[%clk 0:02:30]} 18. Ke2 {[%clk 0:02:08]}  Ne7 {[%clk 0:02:15]} 19. Nxe7+ {[%clk 0:01:52]}  Bxe7 {[%clk 0:02:13]} 20. bxc5 {[%clk 0:01:52]}  bxc5 {[%clk 0:02:14]} 21. Rb7 {[%clk 0:01:49]}  Qe8 {[%clk 0:02:12]} 22. Qb3 {[%clk 0:01:38]}  Bf6 {[%clk 0:02:04]} 23. Rb6 {[%clk 0:01:33]}  Be7 {[%clk 0:01:43]} 24. Rb7 {[%clk 0:01:19]}  Bf8 {[%clk 0:01:43]} 25. Kd2 {[%clk 0:01:12]}  Rf6 {[%clk 0:01:30]} 26. Qb6 {[%clk 0:00:57]}  Bxh5 {[%clk 0:01:27]} 27. Nh4 {[%clk 0:00:54]}  Bg4 {[%clk 0:01:24]} 28. f3 {[%clk 0:00:49]}  Be6 {[%clk 0:01:23]} 29. Ra7 {[%clk 0:00:39]}  Rxa7 {[%clk 0:01:08]} 30. Qxa7 {[%clk 0:00:40]}  Qh5 {[%clk 0:01:06]} 31. Qxa6 {[%clk 0:00:09]}  g5 {[%clk 0:01:06]} 32. Qc6 {[%clk 0:00:07]}  gxh4 {[%clk 0:01:04]} 33. a4 {[%clk 0:00:08]}  Qg5 {[%clk 0:01:01]} 34. Re1 {[%clk 0:00:04]}  Qxg2+ {[%clk 0:01:00]} 35. Re2 {[%clk 0:00:05]}  h3 {[%clk 0:00:59]} 36. a5 {[%clk 0:00:04]}  Qxe2+ {[%clk 0:00:43]} 37. Kxe2 {[%clk 0:00:05]}  h2 {[%clk 0:00:44]} 38. a6 {[%clk 0:00:05]}  h1=Q {[%clk 0:00:44]} 39. Be1 {[%clk 0:00:06]}  Rg6 {[%clk 0:00:39]} 40. a7 {[%clk 0:00:05]}  Rg1 {[%clk 0:00:39]} 41. Bf2 {[%clk 0:00:06]}  Ra1 {[%clk 0:00:38]} 0-1


[Site "https://www.chess.com"]

[Event "Titled Tuesday Blitz November 15 Early 2022"]
[White "Thorhallsson, Simon"]
[Black "Dehtiarov, Roman"]
[WhiteFideId "2310090"]
[BlackFideId "14186640"]
[WhiteElo "2109"]
[BlackElo "2200"]
[Result "0-1"]
[Round "11"]
[TimeControl "180+1"]
[Date "2022.11.16"]
[WhiteClock "0:00:17"]
[BlackClock "0:01:22"]

1. Nf3 {[%clk 0:03:00]}  Nf6 {[%clk 0:02:59]} 2. g3 {[%clk 0:03:00]}  d5 {[%clk 0:02:59]} 3. Bg2 {[%clk 0:03:01]}  e6 {[%clk 0:02:59]} 4. O-O {[%clk 0:03:01]}  c6 {[%clk 0:02:59]} 5. d3 {[%clk 0:02:59]}  Be7 {[%clk 0:03:00]} 6. b3 {[%clk 0:03:00]}  O-O {[%clk 0:03:01]} 7. Bb2 {[%clk 0:03:00]}  Nbd7 {[%clk 0:03:01]} 8. Nbd2 {[%clk 0:02:59]}  b6 {[%clk 0:03:01]} 9. e4 {[%clk 0:02:59]}  Bb7 {[%clk 0:03:01]} 10. Qe2 {[%clk 0:02:58]}  Re8 {[%clk 0:03:01]} 11. Rae1 {[%clk 0:02:53]}  c5 {[%clk 0:02:56]} 12. h3 {[%clk 0:02:42]}  d4 {[%clk 0:02:55]} 13. e5 {[%clk 0:02:39]}  Nd5 {[%clk 0:02:54]} 14. Ne4 {[%clk 0:02:34]}  Qc7 {[%clk 0:02:50]} 15. Nh2 {[%clk 0:02:04]}  Nxe5 {[%clk 0:02:47]} 16. f4 {[%clk 0:02:02]}  Ng6 {[%clk 0:02:45]} 17. f5 {[%clk 0:01:58]}  exf5 {[%clk 0:02:45]} 18. Rxf5 {[%clk 0:01:58]}  Ne3 {[%clk 0:02:45]} 19. Rxf7 {[%clk 0:01:27]}  Bxe4 {[%clk 0:02:22]} 20. Bxe4 {[%clk 0:01:21]}  Qxg3+ {[%clk 0:02:19]} 21. Kh1 {[%clk 0:01:10]}  Kxf7 {[%clk 0:02:18]} 22. Rg1 {[%clk 0:01:06]}  Qxh3 {[%clk 0:01:59]} 23. c3 {[%clk 0:00:56]}  Bd6 {[%clk 0:01:51]} 24. cxd4 {[%clk 0:00:46]}  Qxh2+ {[%clk 0:01:35]} 25. Qxh2 {[%clk 0:00:44]}  Bxh2 {[%clk 0:01:35]} 26. Kxh2 {[%clk 0:00:42]}  cxd4 {[%clk 0:01:31]} 27. Bxd4 {[%clk 0:00:39]}  Nc2 {[%clk 0:01:27]} 28. Rf1+ {[%clk 0:00:22]}  Kg8 {[%clk 0:01:26]} 29. Bd5+ {[%clk 0:00:20]}  Kh8 {[%clk 0:01:26]} 30. Bc3 {[%clk 0:00:19]}  Ne3 {[%clk 0:01:23]} 31. Rf7 {[%clk 0:00:17]}  Nxd5 {[%clk 0:01:23]} 32. Bxg7+ {[%clk 0:00:16]}  Kg8 {[%clk 0:01:23]} 33. Rb7 {[%clk 0:00:17]}  Re7 {[%clk 0:01:22]} 0-1


[Site "https://www.chess.com"]